bitfinex-derivatives/quotes_BTCF0:USTF0_20250905
["timestamp","ask_amount","ask_price","bid_price","bid_amount"]
[1757086887254,1.11376,110980.0,110970.0,1.62944368]
[1757086887649,1.11376,110980.0,110970.0,1.27390221]
[1757086887855,1.16771,110980.0,110970.0,0.91210221]
[1757086888350,1.16771,110980.0,110970.0,0.53117024]
[1757086888544,1.16771,110980.0,110970.0,1.26020696]
[1757086889156,1.16871,110980.0,110970.0,1.26020696]
[1757086890258,1.16871,110980.0,110970.0,1.271053]
[1757086891459,0.32475,110980.0,110970.0,1.271053]
[1757086891758,1.16867,110980.0,110970.0,1.271053]
[1757086892458,1.16867,110980.0,110970.0,1.07730276]
[1757086893660,1.11472,110980.0,110970.0,1.07730276]
[1757086893859,0.89887,110980.0,110970.0,0.34826604]
[1757086894055,0.89887,110980.0,110970.0,0.71650276]
[1757086894255,0.89887,110980.0,110970.0,1.07698276]
[1757086894456,0.89887,110980.0,110970.0,0.70874604]
[1757086894664,0.89887,110980.0,110970.0,1.07698276]
[1757086895461,0.89887,110980.0,110970.0,0.70874604]
[1757086895664,0.89887,110980.0,110970.0,1.07698276]
[1757086896156,0.89887,110980.0,110970.0,0.70874604]
[1757086896357,0.89887,110980.0,110970.0,1.07698276]
[1757086896963,0.89887,110980.0,110970.0,0.70874604]
[1757086897261,0.89887,110980.0,110970.0,1.07698276]
[1757086898168,0.05495,110980.0,110970.0,1.07698276]
[1757086898462,0.89875,110980.0,110970.0,1.07698276]
[1757086899266,0.89875,110980.0,110970.0,0.82698276]
[1757086899467,0.89875,110980.0,110970.0,0.46618276]
[1757086899864,0.89875,110980.0,110970.0,0.09794604]
[1757086900066,0.89875,110980.0,110970.0,0.46618276]
[1757086900470,0.89875,110980.0,110970.0,0.09794604]
[1757086900666,0.89875,110980.0,110970.0,0.46618276]
[1757086903467,0.89875,110980.0,110970.0,0.09794604]
[1757086903667,0.89875,110980.0,110970.0,0.46618276]
[1757086904164,0.89875,110980.0,110970.0,0.09794604]
[1757086904364,0.89875,110980.0,110970.0,0.46618276]
[1757086906167,0.89875,110980.0,110970.0,0.09794604]
[1757086906369,0.89875,110980.0,110970.0,0.46618276]
[1757086907472,0.89674,110980.0,110970.0,0.46618276]
[1757086907666,0.8965,110980.0,110970.0,0.82698276]
[1757086908670,0.8965,110980.0,110970.0,0.45874604]
[1757086908871,0.8965,110980.0,110970.0,0.82698276]
[1757086909771,1.1465,110980.0,110970.0,0.4479]
[1757086909972,1.51473672,110980.0,110970.0,0.0871]
[1757086910271,1.1465,110980.0,110970.0,0.0871]
[1757086911072,1.1475,110980.0,110970.0,0.0871]
[1757086911673,1.1475,110980.0,110970.0,0.09763863]
[1757086911873,1.1475,110980.0,110970.0,0.0871]
[1757086912574,1.1475,110980.0,110970.0,0.45533672]
[1757086912775,1.1475,110980.0,110970.0,0.45433672]
[1757086912970,1.14742,110980.0,110970.0,0.46465998]
[1757086913175,0.89742,110980.0,110970.0,0.82545998]
[1757086913378,0.05394,110980.0,110970.0,0.82545998]
[1757086913576,0.89742,110980.0,110970.0,0.82545998]
[1757086914377,0.002,110980.0,110970.0,1.1936967]
[1757086914578,0.84548,110980.0,110970.0,1.4436967]
[1757086914976,0.84448,110980.0,110970.0,1.4446967]
[1757086915177,0.84444,110980.0,110970.0,1.4446967]
[1757086915878,0.84344,110980.0,110970.0,1.4466967]
[1757086916682,0.0001,110990.0,110970.0,1.4466967]
[1757086916883,0.05204,110990.0,110980.0,0.81085672]
[1757086917082,0.50718,110990.0,110980.0,0.81085672]
[1757086917474,0.89538,110990.0,110980.0,0.81085672]
[1757086917675,0.05194,110990.0,110980.0,0.81085672]
[1757086917876,0.89534,110990.0,110980.0,0.44262]
[1757086918183,0.05194,110990.0,110980.0,0.81085672]
[1757086918376,0.89534,110990.0,110980.0,0.81085672]
[1757086918883,0.89534,110990.0,110980.0,0.81185672]
[1757086919085,0.89534,110990.0,110980.0,0.44362]
[1757086919276,0.05194,110990.0,110980.0,0.81185672]
[1757086919678,0.89534,110990.0,110980.0,0.81185672]
[1757086920281,0.05194,110990.0,110980.0,0.81185672]
[1757086920481,0.89534,110990.0,110980.0,0.81185672]
[1757086920687,0.05194,110990.0,110980.0,0.81185672]
[1757086920879,0.8953,110990.0,110980.0,0.81185672]
[1757086922378,0.05194,110990.0,110980.0,0.81185672]
[1757086922583,0.8953,110990.0,110980.0,0.81185672]
[1757086923497,0.8953,110990.0,110980.0,1.18049362]
[1757086925890,0.8953,110990.0,110980.0,0.44362]
[1757086926088,0.8953,110990.0,110980.0,1.18049362]
[1757086927591,0.38942025,111000.0,110980.0,1.18049362]
[1757086927892,0.07292344,111000.0,110990.0,0.81105681]
[1757086928088,0.91610344,111000.0,110990.0,0.81105681]
[1757086929391,0.07282344,111000.0,110990.0,1.17949362]
[1757086929599,0.86412344,111000.0,110990.0,1.17949362]
[1757086929799,0.86412344,111000.0,110990.0,0.81105681]
[1757086929994,0.84324,111000.0,110990.0,1.17949362]
[1757086930196,0.89618,111000.0,110990.0,0.81105681]
[1757086931803,0.05194,111000.0,110990.0,0.81105681]
[1757086932002,0.89574,111000.0,110990.0,0.81205681]
[1757086935608,1.51417681,111000.0,110990.0,0.44362]
[1757086935999,1.51417681,111000.0,110990.0,0.81205681]
[1757086936400,1.51417681,111000.0,110990.0,0.45125681]
[1757086936613,1.14574,111000.0,110990.0,0.45125681]
[1757086936804,1.51417681,111000.0,110990.0,0.45125681]
[1757086937910,1.51417681,111000.0,110990.0,0.81205681]
[1757086938110,1.51417681,111000.0,110990.0,0.45125681]
[1757086939111,1.51417681,111000.0,110990.0,0.08282]
[1757086939311,1.51417681,111000.0,110990.0,0.81205681]
[1757086940113,1.14574,111000.0,110990.0,0.81205681]
[1757086942814,1.14574,111000.0,110990.0,0.45125681]
[1757086943116,1.14574,111000.0,110990.0,0.08282]
[1757086943306,1.14574,111000.0,110990.0,0.45125681]
[1757086943708,1.14574,111000.0,110990.0,0.08282]
[1757086943910,1.14574,111000.0,110990.0,0.45125681]
[1757086944310,1.51417681,111000.0,110990.0,0.45125681]
[1757086944815,1.14574,111000.0,110990.0,0.81205681]
[1757086945021,1.14574,111000.0,110990.0,0.45125681]
[1757086945415,1.14574,111000.0,110990.0,0.81205681]
[1757086945616,1.14574,111000.0,110990.0,0.44362]
[1757086945815,1.14574,111000.0,110990.0,0.81205681]
[1757086946015,0.30194,111000.0,110990.0,0.81205681]
[1757086946316,0.07403147,111010.0,111000.0,0.07971]
[1757086946508,0.91713147,111010.0,111000.0,0.81658362]
[1757086947117,1.27793147,111010.0,111000.0,0.81658362]
[1757086947312,1.64636828,111010.0,111000.0,0.44814681]
[1757086947518,1.64736828,111010.0,111000.0,0.44814681]
[1757086947914,0.07493147,111010.0,111000.0,0.44814681]
[1757086948117,0.0001,111020.0,111000.0,2.73934225]
[1757086948412,0.0001,111020.0,111010.0,1.44587295]
[1757086948618,0.05318,111030.0,111020.0,0.07971]
[1757086948819,0.05308,111030.0,111020.0,1.17738362]
[1757086949308,0.05308,111030.0,111020.0,1.25078993]
[1757086949506,0.05308,111030.0,111020.0,0.51391631]
[1757086949714,0.05308,111030.0,111020.0,1.25078993]
[1757086950223,0.05708,111030.0,111020.0,1.25078993]
[1757086950415,0.06008,111030.0,111020.0,1.25078993]
[1757086955023,0.0001,111040.0,111030.0,0.0291]
[1757086955219,0.84318,111050.0,111040.0,0.07971]
[1757086955416,0.89616,111050.0,111040.0,1.17738362]
[1757086956218,0.89616,111050.0,111040.0,1.18750756]
[1757086957323,0.89816,111050.0,111040.0,1.18750756]
[1757086957523,0.90016,111050.0,111040.0,1.18750756]
[1757086958725,0.84708,111050.0,111040.0,1.18750756]
[1757086960733,0.004,111050.0,111040.0,1.55594437]
[1757086961134,0.004,111050.0,111040.0,1.18750756]
[1757086961933,0.004,111050.0,111040.0,1.55594437]
[1757086962933,0.004,111050.0,111040.0,1.64599557]
[1757086963736,0.004,111050.0,111040.0,1.55594437]
[1757086963926,0.004,111050.0,111040.0,1.55598437]
[1757086964937,0.2738,111050.0,111040.0,1.55598437]
[1757086967031,0.2738,111050.0,111040.0,1.80598437]
[1757086967237,0.2738,111050.0,111040.0,1.89603557]
[1757086969037,0.2738,111050.0,111040.0,1.80598437]
[1757086970238,0.2738,111050.0,111040.0,1.89603577]
[1757086973339,0.2738,111050.0,111040.0,1.80598437]
[1757086973638,0.2738,111050.0,111040.0,1.18754756]
[1757086974429,0.2728,111050.0,111040.0,1.18754756]
[1757086974634,0.2728,111050.0,111040.0,1.55598437]
[1757086975133,0.2728,111050.0,111040.0,1.64603577]
[1757086975429,0.0001,111060.0,111040.0,1.64603577]
[1757086975633,0.0001,111060.0,111050.0,1.63649363]
[1757086975833,0.02094715,111070.0,111060.0,0.1703751]
[1757086976034,0.02084715,111070.0,111060.0,1.17801362]
[1757086977639,0.02084715,111070.0,111060.0,1.17901362]
[1757086979244,0.27084715,111070.0,111060.0,1.18001362]
[1757086980242,0.31819715,111070.0,111060.0,0.44314]
[1757086980441,0.31819715,111070.0,111060.0,1.18001362]
[1757086980642,0.29735,111070.0,111060.0,1.18001362]
[1757086981342,0.66578681,111070.0,111060.0,0.08234]
[1757086981643,0.66578681,111070.0,111060.0,0.81921362]
[1757086981841,0.29735,111070.0,111060.0,0.81921362]
[1757086982244,0.47926115,111080.0,111070.0,0.03012]
[1757086982434,0.09560115,111080.0,111070.0,1.17801362]
[1757086982837,0.93812115,111080.0,111070.0,1.17801362]
[1757086983044,0.93812115,111080.0,111070.0,0.80957681]
[1757086983741,0.93812115,111080.0,111070.0,1.17801362]
[1757086983948,1.20792115,111080.0,111070.0,0.80957681]
[1757086984348,0.36540115,111080.0,111070.0,1.17801362]
[1757086984543,1.20788115,111080.0,111070.0,1.17801362]
[1757086984754,1.20888115,111080.0,111070.0,1.17801362]
[1757086985257,1.20888115,111080.0,111070.0,0.44114]
[1757086985454,1.20888115,111080.0,111070.0,0.80897126]
[1757086988456,0.36640115,111080.0,111070.0,0.80897126]
[1757086988759,1.20884115,111080.0,111070.0,0.80897126]
[1757086989363,1.16059,111080.0,111070.0,0.80897126]
[1757086991558,0.89079,111080.0,111070.0,0.80897126]
[1757086992056,0.04835,111080.0,111070.0,0.80897126]
[1757086992457,0.89067,111080.0,111070.0,0.44114]
[1757086992660,0.89067,111080.0,111070.0,0.80897126]
[1757086993364,0.89067,111080.0,111070.0,0.44114]
[1757086993564,0.89067,111080.0,111070.0,0.80897126]
[1757086997364,0.04835,111080.0,111070.0,0.80897126]
[1757086997564,0.89059,111080.0,111070.0,0.44114]
[1757086997765,0.89059,111080.0,111070.0,0.80897126]
[1757086998553,0.89059,111080.0,111070.0,0.44114]
[1757086998758,0.89059,111080.0,111070.0,0.80897126]
[1757086999065,1.14059,111080.0,111070.0,0.80897126]
[1757086999261,1.50139,111080.0,111070.0,0.08034]
[1757086999466,1.87622126,111080.0,111060.0,0.41623489]
[1757086999765,1.62632126,111080.0,111070.0,0.04897]
[1757087000067,1.25839,111080.0,111070.0,0.04897]
[1757087000663,1.25139,111080.0,111070.0,0.04897]
[1757087000865,1.25139,111080.0,111060.0,0.77703489]
[1757087001165,1.25149,111080.0,111060.0,0.77703489]
[1757087001868,1.25049,111080.0,111060.0,0.77703489]
[1757087002365,1.61832126,111080.0,111060.0,0.77703489]
[1757087002763,1.25049,111080.0,111060.0,0.77703489]
[1757087003267,1.25049,111080.0,111060.0,0.41623489]
[1757087003467,1.25049,111080.0,111060.0,0.77803489]
[1757087004270,0.40825,111080.0,111060.0,0.04940363]
[1757087004469,0.8886,111070.0,111060.0,0.46620489]
[1757087004670,0.8886,111070.0,111060.0,0.09837363]
[1757087004968,0.8886,111070.0,111060.0,0.46620489]
[1757087005563,0.8886,111070.0,111060.0,0.82700489]
[1757087006069,0.8886,111070.0,111060.0,0.46620489]
[1757087006269,0.8886,111070.0,111060.0,0.82700489]
[1757087007865,0.8886,111070.0,111060.0,0.45917363]
[1757087008369,0.04644,111070.0,111060.0,0.82700489]
[1757087008572,0.04644,111070.0,111060.0,1.19483615]
[1757087008869,0.88852,111070.0,111060.0,0.82700489]
[1757087009071,0.88852,111070.0,111060.0,0.45917363]
[1757087009270,0.88852,111070.0,111060.0,0.82700489]
[1757087009764,0.88852,111070.0,111060.0,0.45917363]
[1757087009966,0.88852,111070.0,111060.0,0.82700489]
[1757087010870,0.88852,111070.0,111060.0,0.45917363]
[1757087011266,0.88852,111070.0,111060.0,0.82700489]
[1757087012270,0.91029875,111070.0,111060.0,0.82700489]
[1757087013372,0.91029875,111070.0,111060.0,0.45917363]
[1757087013672,0.91029875,111070.0,111060.0,0.82700489]
[1757087014173,0.88852,111070.0,111060.0,0.82700489]
[1757087014370,0.04644,111070.0,111060.0,0.82700489]
[1757087014574,0.88844,111070.0,111060.0,0.82700489]
[1757087015262,0.88844,111070.0,111060.0,1.19483615]
[1757087018869,0.8884,111070.0,111060.0,1.19483615]
[1757087019265,0.04654,111080.0,111070.0,0.0307]
[1757087019472,0.91017801,111080.0,111070.0,0.80830126]
[1757087020580,0.91017801,111080.0,111070.0,0.44047]
[1757087020876,0.91017801,111080.0,111070.0,0.80830126]
[1757087022376,0.91117801,111080.0,111070.0,0.80830126]
[1757087023177,0.91117801,111080.0,111070.0,0.80930126]
[1757087023379,0.91017801,111080.0,111070.0,0.80930126]
[1757087024081,0.91017801,111080.0,111070.0,0.44850126]
[1757087024881,0.91017801,111080.0,111070.0,0.08067]
[1757087025082,0.91017801,111080.0,111070.0,0.44850126]
[1757087025680,0.91017801,111080.0,111070.0,0.08067]
[1757087025887,0.91017801,111080.0,111070.0,0.44850126]
[1757087030282,0.02177801,111080.0,111070.0,1.05930126]
[1757087030490,0.7957611,111090.0,111080.0,0.07639]
[1757087030785,0.7957611,111090.0,111080.0,0.43719]
[1757087030786,0.81744153,111090.0,111080.0,0.43719]
[1757087030986,0.81744153,111090.0,111080.0,0.80502126]
[1757087031185,0.81744153,111090.0,111080.0,0.87568037]
[1757087032084,0.7956611,111090.0,111080.0,0.87568037]
[1757087032290,0.8174333,111090.0,111080.0,0.87568037]
[1757087032792,0.8174333,111090.0,111080.0,0.07065911]
[1757087032793,1.79606456,111090.0,111080.0,0.07065911]
[1757087033093,1.4282333,111090.0,111070.0,0.75933126]
[1757087033392,1.4282333,111090.0,111080.0,0.04879]
[1757087033393,1.1783333,111090.0,111080.0,0.04879]
[1757087033591,0.8174333,111090.0,111080.0,0.04879]
[1757087033892,0.8174333,111090.0,111070.0,0.3915]
[1757087033893,0.8184333,111090.0,111070.0,0.3915]
[1757087034190,0.8185333,111090.0,111080.0,0.04879]
[1757087034391,0.8184333,111090.0,111080.0,0.12155182]
[1757087035092,0.8174333,111090.0,111080.0,0.12155182]
[1757087036594,1.18526456,111090.0,111080.0,0.12155182]
[1757087036795,0.8174333,111090.0,111080.0,0.12155182]
[1757087036994,1.1782333,111090.0,111080.0,0.07276182]
[1757087037293,1.79606456,111090.0,111070.0,0.39853126]
[1757087037493,1.54616456,111090.0,111070.0,0.75933126]
[1757087037689,1.54716456,111090.0,111070.0,0.39853126]
[1757087037897,1.54716456,111090.0,111070.0,0.75933126]
[1757087038794,1.54616456,111090.0,111070.0,0.75933126]
[1757087038989,0.4510533,111090.0,111080.0,0.04879]
[1757087039195,0.9317533,111090.0,111080.0,0.44422126]
[1757087039390,0.9317533,111090.0,111080.0,0.07639]
[1757087039896,0.9317533,111090.0,111080.0,0.15006645]
[1757087041894,0.9317533,111090.0,111080.0,0.07367645]
[1757087042093,1.66038456,111090.0,111070.0,0.75933126]
[1757087042301,1.2718811,111090.0,111070.0,0.82366013]
[1757087042594,1.63971236,111090.0,111070.0,0.82366013]
[1757087043397,0.77616126,111080.0,111070.0,0.06432887]
[1757087043595,0.41533,111080.0,111070.0,0.001]
[1757087043994,0.78316126,111080.0,111070.0,0.001]
[1757087044400,0.78316126,111080.0,111070.0,0.004]
[1757087044601,0.89609,111080.0,111070.0,0.004]
[1757087044900,0.89609,111080.0,111070.0,0.05279]
[1757087045996,0.89609,111080.0,111070.0,0.05479]
[1757087046394,0.89609,111080.0,111070.0,0.42262126]
[1757087046595,0.88909,111080.0,111070.0,0.45022126]
[1757087046905,0.88909,111080.0,111070.0,0.81102126]
[1757087047501,0.88909,111080.0,111070.0,0.81107223]
[1757087051304,0.04753,111080.0,111070.0,0.81107223]
[1757087051504,0.88905,111080.0,111070.0,0.81107223]
[1757087052806,0.88905,111080.0,111070.0,0.44319]
[1757087052999,0.88905,111080.0,111070.0,0.81107223]
[1757087054598,0.04753,111080.0,111070.0,0.81107223]
[1757087054905,0.88901,111080.0,111070.0,0.81107223]
[1757087055809,0.88901,111080.0,111070.0,0.44319]
[1757087056105,1.25689223,111080.0,111070.0,0.81107223]
[1757087056297,0.88901,111080.0,111070.0,0.81107223]
[1757087056904,1.25689223,111080.0,111070.0,0.81107223]
[1757087057105,0.88901,111080.0,111070.0,0.81107223]
[1757087057309,1.25689223,111080.0,111070.0,0.81107223]
[1757087057904,1.25689223,111080.0,111070.0,0.44319]
[1757087058101,1.25689223,111080.0,111070.0,0.81107223]
[1757087060408,1.64645852,111080.0,111070.0,0.37388223]
[1757087060810,1.27857629,111080.0,111070.0,0.37388223]
[1757087061210,1.27857629,111080.0,111070.0,0.41853223]
[1757087061409,1.27857629,111080.0,111070.0,0.42253223]
[1757087062013,1.27857629,111080.0,111070.0,0.45002223]
[1757087062510,1.27857629,111080.0,111070.0,0.81082223]
[1757087063300,1.27857629,111080.0,111070.0,0.80982223]
[1757087063504,1.25689223,111080.0,111070.0,0.44902223]
[1757087064314,0.04753,111080.0,111070.0,0.44902223]
[1757087064513,1.25673223,111080.0,111070.0,0.80982223]
[1757087066117,0.88885,111080.0,111070.0,0.80982223]
[1757087066318,1.25673223,111080.0,111070.0,0.80982223]
[1757087067920,0.88885,111080.0,111070.0,0.80982223]
[1757087068117,1.25673223,111080.0,111070.0,0.80982223]
[1757087069722,1.25673223,111080.0,111070.0,0.44194]
[1757087070123,1.25673223,111080.0,111070.0,0.80982223]
[1757087072625,1.25673223,111080.0,111070.0,0.44194]
[1757087073118,1.25673223,111080.0,111070.0,0.80982223]
[1757087073526,0.88885,111080.0,111070.0,0.80982223]
[1757087073825,1.25673223,111080.0,111070.0,0.80982223]
[1757087074626,1.25673223,111080.0,111070.0,0.44194]
[1757087074821,1.25673223,111080.0,111070.0,0.80982223]
[1757087075723,1.25673223,111080.0,111070.0,0.44194]
[1757087076120,1.25673223,111080.0,111070.0,0.80982223]
[1757087076824,1.25673223,111080.0,111070.0,0.73168223]
[1757087077229,1.25649223,111080.0,111070.0,0.80982223]
[1757087077825,1.25649223,111080.0,111070.0,0.44194]
[1757087078026,1.25649223,111080.0,111070.0,0.80982223]
[1757087079635,0.88861,111080.0,111070.0,0.80982223]
[1757087079831,1.25649223,111080.0,111070.0,0.80982223]
[1757087081232,1.25641223,111080.0,111070.0,0.80982223]
[1757087081629,0.04753,111080.0,111070.0,0.80982223]
[1757087081834,0.88849,111080.0,111070.0,0.80982223]
[1757087082837,1.25637223,111080.0,111070.0,0.80982223]
[1757087086438,0.88849,111080.0,111070.0,0.80982223]
[1757087086642,1.25637223,111080.0,111070.0,0.80982223]
[1757087087140,1.62425446,111080.0,111070.0,0.44194]
[1757087087438,1.25637223,111080.0,111070.0,0.80982223]
[1757087089141,1.25637223,111080.0,111070.0,0.44194]
[1757087089440,1.2778243,111080.0,111070.0,0.80982223]
[1757087089838,0.90994207,111080.0,111070.0,0.80982223]
[1757087090037,1.2778243,111080.0,111070.0,0.80982223]
[1757087090437,1.2778243,111080.0,111070.0,0.44194]
[1757087090741,1.2778243,111080.0,111070.0,0.80982223]
[1757087091640,0.90994207,111080.0,111070.0,0.44194]
[1757087091945,0.90994207,111080.0,111070.0,0.80982223]
[1757087092136,1.2778243,111080.0,111070.0,0.80982223]
[1757087093246,1.64570653,111080.0,111070.0,0.73168223]
[1757087093538,1.64570653,111080.0,111070.0,0.77615223]
[1757087093945,1.2778243,111080.0,111070.0,0.77615223]
[1757087094134,1.2778243,111080.0,111070.0,0.44294223]
[1757087094546,0.90994207,111080.0,111070.0,0.44294223]
[1757087094747,1.2778243,111080.0,111070.0,0.003]
[1757087094944,1.2778243,111080.0,111070.0,0.41535223]
[1757087095354,1.25621223,111080.0,111070.0,0.41535223]
[1757087096054,1.25621223,111080.0,111070.0,0.37088223]
[1757087096552,1.62409446,111080.0,111070.0,0.37088223]
[1757087096753,1.62409446,111080.0,111070.0,0.41535223]
[1757087097145,1.25621223,111080.0,111070.0,0.41535223]
[1757087098356,1.62409446,111080.0,111070.0,0.44294223]
[1757087098547,1.25621223,111080.0,111070.0,0.44294223]
[1757087098744,1.25621223,111080.0,111070.0,0.07506]
[1757087098950,1.25621223,111080.0,111070.0,0.44294223]
[1757087099650,1.25621223,111080.0,111070.0,0.07506]
[1757087099853,1.62409446,111080.0,111070.0,0.04747]
[1757087100052,1.62409446,111080.0,111070.0,0.41535223]
[1757087100250,1.62409446,111080.0,111070.0,0.04747]
[1757087100443,2.23489446,111080.0,111070.0,0.003]
[1757087100650,2.62438976,111080.0,111050.0,0.06432887]
[1757087100850,1.53135669,111060.0,111050.0,0.06432887]
[1757087101154,1.53135669,111060.0,111040.0,4e-05]
[1757087101155,2.76108906,111060.0,111040.0,4e-05]
[1757087101454,3.45472669,111050.0,111020.0,0.0001]
[1757087101653,1.45736446,111030.0,111020.0,0.0001]
[1757087101957,2.33617647,111030.0,111010.0,0.08086474]
[1757087102154,1.46444669,111020.0,111010.0,0.08086474]
[1757087102359,1.47417901,111020.0,111000.0,0.08090474]
[1757087102542,1.24509277,111010.0,111000.0,0.00014]
[1757087102745,1.612975,111010.0,111000.0,0.0721]
[1757087102945,1.24509277,111010.0,111000.0,0.02763]
[1757087103154,1.24509277,111010.0,111000.0,0.0721]
[1757087103355,0.749975,111010.0,111000.0,0.43998223]
[1757087103557,0.38209277,111010.0,111000.0,1.06286446]
[1757087103963,0.38209277,111010.0,111000.0,1.42366446]
[1757087103964,0.89005277,111010.0,111000.0,1.42366446]
[1757087104149,0.02129277,111010.0,111000.0,0.6829]
[1757087104343,0.89177277,111010.0,111000.0,0.6879]
[1757087104647,0.89177277,111010.0,111000.0,0.3271]
[1757087104843,0.02129277,111010.0,111000.0,0.6879]
[1757087105043,0.89177277,111010.0,111000.0,1.05578223]
[1757087105250,0.89385277,111010.0,111000.0,0.6879]
[1757087105452,1.262015,111010.0,111000.0,0.0771]
[1757087105854,0.89413277,111010.0,111000.0,0.0771]
[1757087106051,0.89413277,111010.0,111000.0,0.44498223]
[1757087106255,0.89413277,111010.0,111000.0,0.4379]
[1757087106445,0.89413277,111010.0,111000.0,0.44498223]
[1757087106648,1.262015,111010.0,111000.0,0.44798223]
[1757087107252,1.262015,111010.0,111000.0,0.0801]
[1757087107446,0.89413277,111010.0,111000.0,0.0801]
[1757087107648,0.89413277,111010.0,111000.0,0.80878223]
[1757087108353,1.262015,111010.0,111000.0,0.80878223]
[1757087108556,0.89413277,111010.0,111000.0,0.80878223]
[1757087108755,1.262015,111010.0,111000.0,0.80878223]
[1757087108956,1.262015,111010.0,111000.0,0.4409]
[1757087109155,0.89413277,111010.0,111000.0,0.4409]
[1757087109357,0.89413277,111010.0,111000.0,0.80878223]
[1757087109556,0.89413277,111010.0,111000.0,0.4409]
[1757087109853,1.2624922,111010.0,111000.0,0.0801]
[1757087110060,1.6232922,111010.0,111000.0,0.00804]
[1757087110455,1.6232922,111010.0,111000.0,0.0801]
[1757087110762,1.6232922,111010.0,111000.0,0.03563]
[1757087111362,0.02129277,111010.0,111000.0,0.44845943]
[1757087111662,0.90325277,111010.0,111000.0,0.80925943]
[1757087112362,0.90325277,111010.0,111000.0,0.88079105]
[1757087112955,0.90325277,111010.0,111000.0,0.51243162]
[1757087113668,1.2716122,111010.0,111000.0,0.15163162]
[1757087114263,1.2716122,111010.0,111000.0,0.03563]
[1757087115362,2.25077163,111010.0,111000.0,0.00804]
[1757087118660,1.51357277,111010.0,111000.0,0.00804]
[1757087118861,1.8819322,111010.0,111000.0,0.00804]
[1757087119354,1.8819322,111010.0,111000.0,0.00792]
[1757087121166,2.25029163,111010.0,111000.0,0.00792]
[1757087121366,1.8819322,111010.0,111000.0,0.00792]
[1757087122668,2.25029163,111010.0,111000.0,0.00792]
[1757087123875,1.51317277,111010.0,111000.0,0.00792]
[1757087124064,2.24989163,111010.0,111000.0,0.00792]
[1757087124365,0.7504522,111010.0,111000.0,0.00792]
[1757087124565,1.6315322,111010.0,111000.0,0.00792]
[1757087125972,1.99989163,111010.0,111000.0,0.00792]
[1757087126173,2.24989163,111010.0,111000.0,0.00792]
[1757087128173,0.70768,111000.0,110990.0,0.04471048]
[1757087128369,1.80519886,111000.0,110990.0,0.04461048]
[1757087128869,1.80519886,111000.0,110990.0,0.01791048]
[1757087129776,1.80519886,111000.0,110990.0,0.02491048]
[1757087130176,1.80519886,111000.0,110990.0,0.02791048]
[1757087131469,1.79331886,111000.0,110990.0,0.02791048]
[1757087131775,0.36835943,110990.0,110980.0,0.0001]
[1757087131975,2.49160974,110990.0,110970.0,0.07285]
[1757087132180,1.60947943,110980.0,110970.0,0.07285]
[1757087132374,1.60947943,110980.0,110970.0,0.07275]
[1757087133380,1.60947943,110980.0,110970.0,0.07775]
[1757087133780,1.60647943,110980.0,110970.0,0.07775]
[1757087134081,1.60647943,110980.0,110970.0,0.07767]
[1757087134486,0.3578,110980.0,110970.0,0.07767]
[1757087134687,0.88036,110980.0,110970.0,0.33167]
[1757087134974,0.88024,110980.0,110970.0,0.32667]
[1757087135176,0.002,110980.0,110970.0,0.32767]
[1757087135479,0.002,110980.0,110970.0,1.05682943]
[1757087135480,0.88124,110980.0,110970.0,1.05682943]
[1757087135873,0.88124,110980.0,110970.0,1.42518886]
[1757087135874,0.002,110980.0,110970.0,1.42518886]
[1757087136087,0.002,110980.0,110970.0,1.43489075]
[1757087136277,0.0001,110990.0,110980.0,0.1167997]
[1757087136478,0.90149277,111010.0,111000.0,0.07275]
[1757087136784,0.90149277,111010.0,111000.0,1.16270943]
[1757087137583,0.90149277,111010.0,111000.0,1.50151795]
[1757087138769,0.02129277,111010.0,111000.0,1.50151795]
[1757087139381,0.02129277,111010.0,111000.0,1.25151795]
[1757087139881,0.02229277,111010.0,111000.0,1.25451795]
[1757087140279,0.02429277,111010.0,111000.0,1.25451795]
[1757087141175,0.02229277,111010.0,111000.0,1.25451795]
[1757087141375,0.02229277,111010.0,111000.0,1.25651795]
[1757087141777,0.02229277,111010.0,111000.0,1.27058782]
[1757087142189,0.02229277,111010.0,111000.0,0.81341987]
[1757087142378,0.02229277,111010.0,111000.0,1.27058782]
[1757087142773,0.04085277,111010.0,111000.0,0.81341987]
[1757087144082,0.04085277,111010.0,111000.0,0.45261987]
[1757087144280,0.04085277,111010.0,111000.0,0.09181987]
[1757087144876,0.29085277,111010.0,111000.0,0.09181987]
[1757087146086,0.74802072,111010.0,111000.0,0.04576987]
[1757087146288,0.29085277,111010.0,111000.0,0.04576987]
[1757087147078,0.29085277,111010.0,111000.0,0.09143987]
[1757087147686,0.29085277,111010.0,111000.0,0.04546946]
[1757087147984,0.74802072,111010.0,111000.0,0.04546946]
[1757087148982,1.10882072,111010.0,111000.0,0.01876946]
[1757087149489,1.10882072,111010.0,111000.0,0.09276946]
[1757087150288,0.65165277,111010.0,111000.0,0.09276946]
[1757087150486,1.53269277,111010.0,111000.0,0.09276946]
[1757087150684,1.53269277,111010.0,111000.0,0.09076946]
[1757087150985,1.53269277,111010.0,111000.0,0.01676946]
[1757087150986,1.55911426,111010.0,111000.0,0.01676946]
[1757087151186,2.01528221,111010.0,111000.0,0.01376946]
[1757087151394,2.01628221,111010.0,111000.0,0.01376946]
[1757087153885,2.01628221,111010.0,110990.0,0.0268]
[1757087154085,0.45726795,111000.0,110990.0,0.08566515]
[1757087154289,0.04168633,111000.0,110990.0,0.08556515]
[1757087154889,0.04168633,111000.0,110990.0,0.07237]
[1757087155091,0.0163,111000.0,110990.0,0.07337]
[1757087156092,0.3781,111000.0,110990.0,0.07537]
[1757087156495,0.3781,111000.0,110990.0,0.003]
[1757087156694,0.40345538,111000.0,110990.0,0.003]
[1757087157096,1.11062333,111000.0,110990.0,0.003]
[1757087158181,1.1203212,111000.0,110990.0,0.003]
[1757087158583,1.1213212,111000.0,110990.0,0.002]
[1757087158991,1.1203212,111000.0,110980.0,0.0268]
[1757087159197,1.25376,110990.0,110980.0,0.0268]
[1757087159387,1.73181043,110990.0,110970.0,0.38752]
[1757087159591,0.2861,110980.0,110970.0,0.38752]
[1757087159893,0.3771,110980.0,110970.0,0.07229]
[1757087161088,0.0163,110980.0,110970.0,0.07229]
[1757087161395,0.3771,110980.0,110970.0,0.07429]
[1757087161596,0.0163,110980.0,110970.0,0.07429]
[1757087161794,0.8923,110980.0,110970.0,0.07429]
[1757087162490,0.8923,110980.0,110970.0,0.07529]
[1757087162491,1.2531,110980.0,110970.0,0.07529]